Workbook

Sheet Step 1 - Order Planner
A16: EOP Rebate Calculator
A17: Across-The-Lawn Rebate | B17: ='Range Reference'!G6 -> 0% | D17: Across-The-Lawn Solutions Purchases | H17: =G56 -> 0
A20: Spend for Next ATL Level | B20: =HLOOKUP(H17,'Range Reference'!H2:H6,5,FALSE) -> $3,000.00
A22: Next Level Rebate | B22: =IF(B17=0.12,"Max Rebate Achieved",VLOOKUP(B20,'Range Reference'!H3:I6,2,FALSE)) -> 4% | D22: TOTAL EOP Rebate | H22: =(H17*B17) -> 0
A25: Qualifying EOP Products | B25: Package | C25: Article Number | D25: Redemption Value | F25: EOP Order (Cases) | G25: EOP Sales | J25: Acres Low | K25: Acres Mid | L25: Acres High
A26: Insecticides
A27: =VLOOKUP($C27,'Article Reference'!$A$3:$D$49,2,FALSE) -> Alucion® 35 WG insecticide | B27: =VLOOKUP($C27,'Article Reference'!$A$3:$D$49,3,FALSE) -> 10 x 2.375 lbs | C27: 59024020 | D27: =VLOOKUP($C27,'Article Reference'!$A$3:$D$49,4,FALSE) -> $2,442.90 | F27: 0 | G27: =F27*D27 -> 0
A28: =VLOOKUP($C28,'Article Reference'!$A$3:$D$49,2,FALSE) -> Amdro Pro Fire Ant Bait | B28: =VLOOKUP($C28,'Article Reference'!$A$3:$D$49,3,FALSE) -> 1 x 25lbs | C28: 59021451 | D28: =VLOOKUP($C28,'Article Reference'!$A$3:$D$49,4,FALSE) -> $536.25 | F28: 0 | G28: =F28*D28 -> 0 | J28: =IF(ISNA(VLOOKUP($C28,#REF!,4,FALSE))=TRUE,0,VLOOKUP($C28,#REF!,4,FALSE)*(F28+H28)) ->  | K28: =IF(ISNA(VLOOKUP($C28,#REF!,5,FALSE))=TRUE,0,VLOOKUP($C28,#REF!,5,FALSE)*(F28+H28)) ->  | L28: =IF(ISNA(VLOOKUP($C28,#REF!,6,FALSE))=TRUE,0,VLOOKUP($C28,#REF!,6,FALSE)*(F28+H28)) -> 
A29: =VLOOKUP($C29,'Article Reference'!$A$3:$D$49,2,FALSE) -> Siesta® Fire Ant Bait | B29: =VLOOKUP($C29,'Article Reference'!$A$3:$D$49,3,FALSE) -> 15 lbs | C29: 59011057 | D29: =VLOOKUP($C29,'Article Reference'!$A$3:$D$49,4,FALSE) -> $294.19 | F29: 0 | G29: =F29*D29 -> 0 | J29: =IF(ISNA(VLOOKUP($C29,#REF!,4,FALSE))=TRUE,0,VLOOKUP($C29,#REF!,4,FALSE)*(F29+H29)) ->  | K29: =IF(ISNA(VLOOKUP($C29,#REF!,5,FALSE))=TRUE,0,VLOOKUP($C29,#REF!,5,FALSE)*(F29+H29)) ->  | L29: =IF(ISNA(VLOOKUP($C29,#REF!,6,FALSE))=TRUE,0,VLOOKUP($C29,#REF!,6,FALSE)*(F29+H29)) -> 
A30: =VLOOKUP($C30,'Article Reference'!$A$3:$D$49,2,FALSE) -> Sultan® miticide | B30: =VLOOKUP($C30,'Article Reference'!$A$3:$D$49,3,FALSE) -> 4 x 0.125 gal | C30: 59023753 | D30: =VLOOKUP($C30,'Article Reference'!$A$3:$D$49,4,FALSE) -> $709.68 | F30: 0 | G30: =F30*D30 -> 0 | J30: =IF(ISNA(VLOOKUP($C30,#REF!,4,FALSE))=TRUE,0,VLOOKUP($C30,#REF!,4,FALSE)*(F30+H30)) ->  | K30: =IF(ISNA(VLOOKUP($C30,#REF!,5,FALSE))=TRUE,0,VLOOKUP($C30,#REF!,5,FALSE)*(F30+H30)) ->  | L30: =IF(ISNA(VLOOKUP($C30,#REF!,6,FALSE))=TRUE,0,VLOOKUP($C30,#REF!,6,FALSE)*(F30+H30)) -> 
A31: =VLOOKUP($C31,'Article Reference'!$A$3:$D$49,2,FALSE) -> Ventigra® insecticide | B31: =VLOOKUP($C31,'Article Reference'!$A$3:$D$49,3,FALSE) -> 4 x 20 oz | C31: 59014680 | D31: =VLOOKUP($C31,'Article Reference'!$A$3:$D$49,4,FALSE) -> $1,266.40 | F31: 0 | G31: 0 | J31: =IF(ISNA(VLOOKUP($C31,#REF!,4,FALSE))=TRUE,0,VLOOKUP($C31,#REF!,4,FALSE)*(F31+H31)) ->  | K31: =IF(ISNA(VLOOKUP($C31,#REF!,5,FALSE))=TRUE,0,VLOOKUP($C31,#REF!,5,FALSE)*(F31+H31)) ->  | L31: =IF(ISNA(VLOOKUP($C31,#REF!,6,FALSE))=TRUE,0,VLOOKUP($C31,#REF!,6,FALSE)*(F31+H31)) -> 
A32: Fungicides
A33: =VLOOKUP($C33,'Article Reference'!$A$3:$D$49,2,FALSE) -> Insignia® SC Intrinsic® brand fungicide | B33: =VLOOKUP($C33,'Article Reference'!$A$3:$D$49,3,FALSE) -> 4 x 30.5 fl oz | C33: 59014134 | D33: =VLOOKUP($C33,'Article Reference'!$A$3:$D$49,4,FALSE) -> $2,169.16 | F33: 0 | G33: 0 | J33: =IF(ISNA(VLOOKUP($C33,#REF!,4,FALSE))=TRUE,0,VLOOKUP($C33,#REF!,4,FALSE)*(F33+H33)) ->  | K33: =IF(ISNA(VLOOKUP($C33,#REF!,5,FALSE))=TRUE,0,VLOOKUP($C33,#REF!,5,FALSE)*(F33+H33)) ->  | L33: =IF(ISNA(VLOOKUP($C33,#REF!,6,FALSE))=TRUE,0,VLOOKUP($C33,#REF!,6,FALSE)*(F33+H33)) -> 
A34: =VLOOKUP($C34,'Article Reference'!$A$3:$D$49,2,FALSE) -> Insignia® SC Intrinsic® brand fungicide | B34: =VLOOKUP($C34,'Article Reference'!$A$3:$D$49,3,FALSE) -> 2 x 2.5 gal | C34: 59014135 | D34: =VLOOKUP($C34,'Article Reference'!$A$3:$D$49,4,FALSE) -> $7,225.10 | F34: 0 | G34: 0 | J34: =IF(ISNA(VLOOKUP($C34,#REF!,4,FALSE))=TRUE,0,VLOOKUP($C34,#REF!,4,FALSE)*(F34+H34)) ->  | K34: =IF(ISNA(VLOOKUP($C34,#REF!,5,FALSE))=TRUE,0,VLOOKUP($C34,#REF!,5,FALSE)*(F34+H34)) ->  | L34: =IF(ISNA(VLOOKUP($C34,#REF!,6,FALSE))=TRUE,0,VLOOKUP($C34,#REF!,6,FALSE)*(F34+H34)) -> 
A35: =VLOOKUP($C35,'Article Reference'!$A$3:$D$49,2,FALSE) -> Insignia® SC Intrinsic® brand fungicide | B35: =VLOOKUP($C35,'Article Reference'!$A$3:$D$49,3,FALSE) -> 4 x 122 oz | C35: 59020732 | D35: =VLOOKUP($C35,'Article Reference'!$A$3:$D$49,4,FALSE) -> $9,760.00 | F35: 0 | G35: 0 | J35: =IF(ISNA(VLOOKUP($C35,#REF!,4,FALSE))=TRUE,0,VLOOKUP($C35,#REF!,4,FALSE)*(F35+H35)) ->  | K35: =IF(ISNA(VLOOKUP($C35,#REF!,5,FALSE))=TRUE,0,VLOOKUP($C35,#REF!,5,FALSE)*(F35+H35)) ->  | L35: =IF(ISNA(VLOOKUP($C35,#REF!,6,FALSE))=TRUE,0,VLOOKUP($C35,#REF!,6,FALSE)*(F35+H35)) -> 
A36: =VLOOKUP($C36,'Article Reference'!$A$3:$D$49,2,FALSE) -> Orkestra® Intrinsic® brand Fungicide | B36: =VLOOKUP($C36,'Article Reference'!$A$3:$D$49,3,FALSE) -> 4 x 16 oz | C36: 59014379 | D36: =VLOOKUP($C36,'Article Reference'!$A$3:$D$49,4,FALSE) -> $668.80 | F36: 0 | G36: =F36*D36 -> 0 | J36: =IF(ISNA(VLOOKUP($C36,#REF!,4,FALSE))=TRUE,0,VLOOKUP($C36,#REF!,4,FALSE)*(F36+H36)) ->  | K36: =IF(ISNA(VLOOKUP($C36,#REF!,5,FALSE))=TRUE,0,VLOOKUP($C36,#REF!,5,FALSE)*(F36+H36)) ->  | L36: =IF(ISNA(VLOOKUP($C36,#REF!,6,FALSE))=TRUE,0,VLOOKUP($C36,#REF!,6,FALSE)*(F36+H36)) -> 
A37: =VLOOKUP($C37,'Article Reference'!$A$3:$D$49,2,FALSE) -> Pageant® Intrinsic® brand Fungicide | B37: =VLOOKUP($C37,'Article Reference'!$A$3:$D$49,3,FALSE) -> 4 x 1 lb | C37: 59012349 | D37: =VLOOKUP($C37,'Article Reference'!$A$3:$D$49,4,FALSE) -> $443.36 | F37: 0 | G37: 0 | J37: =IF(ISNA(VLOOKUP($C37,#REF!,4,FALSE))=TRUE,0,VLOOKUP($C37,#REF!,4,FALSE)*(F37+H37)) ->  | K37: =IF(ISNA(VLOOKUP($C37,#REF!,5,FALSE))=TRUE,0,VLOOKUP($C37,#REF!,5,FALSE)*(F37+H37)) ->  | L37: =IF(ISNA(VLOOKUP($C37,#REF!,6,FALSE))=TRUE,0,VLOOKUP($C37,#REF!,6,FALSE)*(F37+H37)) -> 
A38: =VLOOKUP($C38,'Article Reference'!$A$3:$D$49,2,FALSE) -> Pillar® G Intrinsic® brand fungicide | B38: =VLOOKUP($C38,'Article Reference'!$A$3:$D$49,3,FALSE) -> 15 lbs bag | C38: 59017959 | D38: =VLOOKUP($C38,'Article Reference'!$A$3:$D$49,4,FALSE) -> $56.63 | F38: 0 | G38: 0 | J38: =IF(ISNA(VLOOKUP($C38,#REF!,4,FALSE))=TRUE,0,VLOOKUP($C38,#REF!,4,FALSE)*(F38+H38)) ->  | K38: =IF(ISNA(VLOOKUP($C38,#REF!,5,FALSE))=TRUE,0,VLOOKUP($C38,#REF!,5,FALSE)*(F38+H38)) ->  | L38: =IF(ISNA(VLOOKUP($C38,#REF!,6,FALSE))=TRUE,0,VLOOKUP($C38,#REF!,6,FALSE)*(F38+H38)) -> 
A39: =VLOOKUP($C39,'Article Reference'!$A$3:$D$49,2,FALSE) -> Pillar® G Intrinsic® brand fungicide | B39: =VLOOKUP($C39,'Article Reference'!$A$3:$D$49,3,FALSE) -> 30 lbs bag | C39: 59012784 | D39: =VLOOKUP($C39,'Article Reference'!$A$3:$D$49,4,FALSE) -> $105.00 | F39: 0 | G39: =F39*D39 -> 0
A40: =VLOOKUP($C40,'Article Reference'!$A$3:$D$49,2,FALSE) -> Pillar® SC Intrinsic brand fungicide | B40: =VLOOKUP($C40,'Article Reference'!$A$3:$D$49,3,FALSE) -> 4 x 43.5 oz | C40: 59026395 | D40: =VLOOKUP($C40,'Article Reference'!$A$3:$D$49,4,FALSE) -> $856.95 | F40: 0 | G40: 0
A41: =VLOOKUP($C41,'Article Reference'!$A$3:$D$49,2,FALSE) -> Xzemplar® fungicide | B41: =VLOOKUP($C41,'Article Reference'!$A$3:$D$49,3,FALSE) -> 2 x 114 oz | C41: 59013833 | D41: =VLOOKUP($C41,'Article Reference'!$A$3:$D$49,4,FALSE) -> $3,451.92 | F41: 0 | G41: 0
A42: =VLOOKUP($C42,'Article Reference'!$A$3:$D$49,2,FALSE) -> Xzemplar® fungicide | B42: =VLOOKUP($C42,'Article Reference'!$A$3:$D$49,3,FALSE) -> 4 x 11.4 oz | C42: 59014120 | D42: =VLOOKUP($C42,'Article Reference'!$A$3:$D$49,4,FALSE) -> $808.04 | F42: 0 | G42: 0
A43: Herbicides
A44: =VLOOKUP($C44,'Article Reference'!$A$3:$D$49,2,FALSE) -> Basagran® herbicide | B44: =VLOOKUP($C44,'Article Reference'!$A$3:$D$49,3,FALSE) -> 2 x 1 gal | C44: 59011636 | D44: =VLOOKUP($C44,'Article Reference'!$A$3:$D$49,4,FALSE) -> $125.58 | F44: 0 | G44: 0 | J44: =IF(ISNA(VLOOKUP($C44,#REF!,4,FALSE))=TRUE,0,VLOOKUP($C44,#REF!,4,FALSE)*(F44+H44)) ->  | K44: =IF(ISNA(VLOOKUP($C44,#REF!,5,FALSE))=TRUE,0,VLOOKUP($C44,#REF!,5,FALSE)*(F44+H44)) ->  | L44: =IF(ISNA(VLOOKUP($C44,#REF!,6,FALSE))=TRUE,0,VLOOKUP($C44,#REF!,6,FALSE)*(F44+H44)) -> 
A45: =VLOOKUP($C45,'Article Reference'!$A$3:$D$49,2,FALSE) -> Drive® XLR8 herbicide | B45: =VLOOKUP($C45,'Article Reference'!$A$3:$D$49,3,FALSE) -> 4 x 0.5 gal | C45: 59011404 | D45: =VLOOKUP($C45,'Article Reference'!$A$3:$D$49,4,FALSE) -> $221.25 | F45: 0 | G45: 0 | J45: =IF(ISNA(VLOOKUP($C45,#REF!,4,FALSE))=TRUE,0,VLOOKUP($C45,#REF!,4,FALSE)*(F45+H45)) ->  | K45: =IF(ISNA(VLOOKUP($C45,#REF!,5,FALSE))=TRUE,0,VLOOKUP($C45,#REF!,5,FALSE)*(F45+H45)) ->  | L45: =IF(ISNA(VLOOKUP($C45,#REF!,6,FALSE))=TRUE,0,VLOOKUP($C45,#REF!,6,FALSE)*(F45+H45)) -> 
A46: =VLOOKUP($C46,'Article Reference'!$A$3:$D$49,2,FALSE) -> Drive® XLR8 herbicide | B46: =VLOOKUP($C46,'Article Reference'!$A$3:$D$49,3,FALSE) -> 2 x 2.5 gal | C46: 59018043 | D46: =VLOOKUP($C46,'Article Reference'!$A$3:$D$49,4,FALSE) -> $514.44 | F46: 0 | G46: =F46*D46 -> 0
A47: =VLOOKUP($C47,'Article Reference'!$A$3:$D$49,2,FALSE) -> Finale® XL T&O herbicide | B47: =VLOOKUP($C47,'Article Reference'!$A$3:$D$49,3,FALSE) -> 2 x 2.5 gal | C47: 59024131 | D47: =VLOOKUP($C47,'Article Reference'!$A$3:$D$49,4,FALSE) -> $543.75 | F47: 0 | G47: 0 | J47: =IF(ISNA(VLOOKUP($C47,#REF!,4,FALSE))=TRUE,0,VLOOKUP($C47,#REF!,4,FALSE)*(F47+H47)) ->  | K47: =IF(ISNA(VLOOKUP($C47,#REF!,5,FALSE))=TRUE,0,VLOOKUP($C47,#REF!,5,FALSE)*(F47+H47)) ->  | L47: =IF(ISNA(VLOOKUP($C47,#REF!,6,FALSE))=TRUE,0,VLOOKUP($C47,#REF!,6,FALSE)*(F47+H47)) -> 
A48: =VLOOKUP($C48,'Article Reference'!$A$3:$D$49,2,FALSE) -> FreeHand® 1.75G herbicide | B48: =VLOOKUP($C48,'Article Reference'!$A$3:$D$49,3,FALSE) -> 1 x 50 lb | C48: 59011296 | D48: =VLOOKUP($C48,'Article Reference'!$A$3:$D$49,4,FALSE) -> $109.50 | F48: 0 | G48: 0 | J48: =IF(ISNA(VLOOKUP($C48,#REF!,4,FALSE))=TRUE,0,VLOOKUP($C48,#REF!,4,FALSE)*(F48+H48)) ->  | K48: =IF(ISNA(VLOOKUP($C48,#REF!,5,FALSE))=TRUE,0,VLOOKUP($C48,#REF!,5,FALSE)*(F48+H48)) ->  | L48: =IF(ISNA(VLOOKUP($C48,#REF!,6,FALSE))=TRUE,0,VLOOKUP($C48,#REF!,6,FALSE)*(F48+H48)) -> 
A49: =VLOOKUP($C49,'Article Reference'!$A$3:$D$49,2,FALSE) -> Pendulum® 2G herbicide | B49: =VLOOKUP($C49,'Article Reference'!$A$3:$D$49,3,FALSE) -> 20 lbs bag | C49: 59017972 | D49: =VLOOKUP($C49,'Article Reference'!$A$3:$D$49,4,FALSE) -> $48.50 | F49: 0 | G49: 0 | J49: =IF(ISNA(VLOOKUP($C49,#REF!,4,FALSE))=TRUE,0,VLOOKUP($C49,#REF!,4,FALSE)*(F49+H49)) ->  | K49: =IF(ISNA(VLOOKUP($C49,#REF!,5,FALSE))=TRUE,0,VLOOKUP($C49,#REF!,5,FALSE)*(F49+H49)) ->  | L49: =IF(ISNA(VLOOKUP($C49,#REF!,6,FALSE))=TRUE,0,VLOOKUP($C49,#REF!,6,FALSE)*(F49+H49)) -> 
A50: =VLOOKUP($C50,'Article Reference'!$A$3:$D$49,2,FALSE) -> Pendulum® 2G herbicide | B50: =VLOOKUP($C50,'Article Reference'!$A$3:$D$49,3,FALSE) -> 40 lbs bag | C50: 59015072 | D50: =VLOOKUP($C50,'Article Reference'!$A$3:$D$49,4,FALSE) -> $85.50 | F50: 0 | G50: 0 | J50: =IF(ISNA(VLOOKUP($C50,#REF!,4,FALSE))=TRUE,0,VLOOKUP($C50,#REF!,4,FALSE)*(F50+H50)) ->  | K50: =IF(ISNA(VLOOKUP($C50,#REF!,5,FALSE))=TRUE,0,VLOOKUP($C50,#REF!,5,FALSE)*(F50+H50)) ->  | L50: =IF(ISNA(VLOOKUP($C50,#REF!,6,FALSE))=TRUE,0,VLOOKUP($C50,#REF!,6,FALSE)*(F50+H50)) -> 
A51: =VLOOKUP($C51,'Article Reference'!$A$3:$D$49,2,FALSE) -> Pendulum® AquaCap herbicide | B51: =VLOOKUP($C51,'Article Reference'!$A$3:$D$49,3,FALSE) -> 2 x 2.5 gal | C51: 59049276 | D51: =VLOOKUP($C51,'Article Reference'!$A$3:$D$49,4,FALSE) -> $281.25 | F51: 0 | G51: =F51*D51 -> 0 | J51: =IF(ISNA(VLOOKUP($C51,#REF!,4,FALSE))=TRUE,0,VLOOKUP($C51,#REF!,4,FALSE)*(F51+H51)) ->  | K51: =IF(ISNA(VLOOKUP($C51,#REF!,5,FALSE))=TRUE,0,VLOOKUP($C51,#REF!,5,FALSE)*(F51+H51)) ->  | L51: =IF(ISNA(VLOOKUP($C51,#REF!,6,FALSE))=TRUE,0,VLOOKUP($C51,#REF!,6,FALSE)*(F51+H51)) -> 
A52: =VLOOKUP($C52,'Article Reference'!$A$3:$D$49,2,FALSE) -> Pendulum® AquaCap herbicide | B52: =VLOOKUP($C52,'Article Reference'!$A$3:$D$49,3,FALSE) -> 1 x 15 gal | C52: 59011279 | D52: =VLOOKUP($C52,'Article Reference'!$A$3:$D$49,4,FALSE) -> $983.10 | F52: 0 | G52: 0 | J52: =IF(ISNA(VLOOKUP($C52,#REF!,4,FALSE))=TRUE,0,VLOOKUP($C52,#REF!,4,FALSE)*(F52+H52)) ->  | K52: =IF(ISNA(VLOOKUP($C52,#REF!,5,FALSE))=TRUE,0,VLOOKUP($C52,#REF!,5,FALSE)*(F52+H52)) ->  | L52: =IF(ISNA(VLOOKUP($C52,#REF!,6,FALSE))=TRUE,0,VLOOKUP($C52,#REF!,6,FALSE)*(F52+H52)) -> 
A53: =VLOOKUP($C53,'Article Reference'!$A$3:$D$49,2,FALSE) -> Pylex® herbicide | B53: =VLOOKUP($C53,'Article Reference'!$A$3:$D$49,3,FALSE) -> 4 x 4 oz | C53: 59018005 | D53: =VLOOKUP($C53,'Article Reference'!$A$3:$D$49,4,FALSE) -> $1,376.00 | F53: 0 | G53: 0 | J53: =IF(ISNA(VLOOKUP($C53,#REF!,4,FALSE))=TRUE,0,VLOOKUP($C53,#REF!,4,FALSE)*(F53+H53)) ->  | K53: =IF(ISNA(VLOOKUP($C53,#REF!,5,FALSE))=TRUE,0,VLOOKUP($C53,#REF!,5,FALSE)*(F53+H53)) ->  | L53: =IF(ISNA(VLOOKUP($C53,#REF!,6,FALSE))=TRUE,0,VLOOKUP($C53,#REF!,6,FALSE)*(F53+H53)) -> 
A54: =VLOOKUP($C54,'Article Reference'!$A$3:$D$49,2,FALSE) -> Segment® II herbicide | B54: =VLOOKUP($C54,'Article Reference'!$A$3:$D$49,3,FALSE) -> 2 x 2.5 gal | C54: 59014427 | D54: =VLOOKUP($C54,'Article Reference'!$A$3:$D$49,4,FALSE) -> $1,562.50 | F54: 0 | G54: 0 | J54: =IF(ISNA(VLOOKUP($C54,#REF!,4,FALSE))=TRUE,0,VLOOKUP($C54,#REF!,4,FALSE)*(F54+H54)) ->  | K54: =IF(ISNA(VLOOKUP($C54,#REF!,5,FALSE))=TRUE,0,VLOOKUP($C54,#REF!,5,FALSE)*(F54+H54)) ->  | L54: =IF(ISNA(VLOOKUP($C54,#REF!,6,FALSE))=TRUE,0,VLOOKUP($C54,#REF!,6,FALSE)*(F54+H54)) -> 
A55: =VLOOKUP($C55,'Article Reference'!$A$3:$D$49,2,FALSE) -> Tower® herbicide | B55: =VLOOKUP($C55,'Article Reference'!$A$3:$D$49,3,FALSE) -> 2 x 2.5 gal | C55: 59014247 | D55: =VLOOKUP($C55,'Article Reference'!$A$3:$D$49,4,FALSE) -> $1,972.50 | F55: 0 | G55: 0 | J55: =IF(ISNA(VLOOKUP($C55,#REF!,4,FALSE))=TRUE,0,VLOOKUP($C55,#REF!,4,FALSE)*(F55+H55)) ->  | K55: =IF(ISNA(VLOOKUP($C55,#REF!,5,FALSE))=TRUE,0,VLOOKUP($C55,#REF!,5,FALSE)*(F55+H55)) ->  | L55: =IF(ISNA(VLOOKUP($C55,#REF!,6,FALSE))=TRUE,0,VLOOKUP($C55,#REF!,6,FALSE)*(F55+H55)) -> 
A56: QUALIFYING EOP PRODUCTS SUB-TOTAL | G56: =SUM(G27:G55) -> 0 | J56: =I56+G56 -> 0
A61: BASF has developed this calculator using formulas that approximate the rebate amount under the 2024 Early Order Program. The calculator is being shared with you for information purposes only and for your private use in preparing your own calculations. While every effort has been made to ensure the accuracy and reliability of the information and formulas, no guarantee is given nor responsibility taken by BASF for the accuracy of the calculator or the applicability to your particular circumstances. BASF PROVIDES THIS CALCULATOR AND ANY RESULT THEREFROM AS IS WITH ALL FAULTS AND WITH NO WARRANTY WHATSOEVER, EITHER EXPRESS OR IMPLIED, INCLUDING ANY WARRANTIES OF MERCHANTABILITY AND FITNESS FOR PARTICULAR PURPOSE. YOU ASSUME ANY AND ALL RISKS IN USING THE CALCULATOR AND RELYING ON THE INFORMATION CONTAINED HEREIN. IN NO CIRCUMSTANCES SHALL BASF BE LIABLE FOR ANY DAMAGES WHATSOEVER, INCLUDING BUT NOT LIMITED TO LOSS OF PROFIT, LOSS OF BUSINESS, LOSS OF SAVINGS, OR CONSEQUENTIAL DAMAGES, EVEN IF BASF HAS BEEN NOTIFIED AS SUCH.

Sheet Step 2 - OldManage Apps (hidden)
A15: Enter Acres for your Course (Required)
A16: Fairways & Tees Acres | C16: 40.00
A17: Greens Acres | C17: 10.00
A19: Please complete Yellow "Use Area" cells with either Fairways or Greens
A20: Fungicide Planner | M20: Fairways
A21: Product Name | B21: Case Size | C21: Use Area | D21: Low Rate | F21: Mid Rate | H21: High Rate | M21: Greens
D22: Total Acres | E22: Applications | F22: Total Acres | G22: Applications | H22: Total Acres | I22: Applications
A23: Emerald | B23: 10 x .49 lb. | C23: Fairways | D23: =SUMIFS('Step 1 - Order Planner'!#REF!,'Step 1 - Order Planner'!#REF!,$K23)+SUMIFS('Step 1 - Order Planner'!J$28:J$55,'Step 1 - Order Planner'!$C$28:$C$55,$K23) ->  | E23: =IF(OR($C$16=0,$C$17=0),"Please Enter Acreage",IF(C23="Greens",D23/$C$17,IF(C23="Fairways",D23/$C$16,0))) ->  | F23: =SUMIFS('Step 1 - Order Planner'!#REF!,'Step 1 - Order Planner'!#REF!,$K23)+SUMIFS('Step 1 - Order Planner'!K$28:K$55,'Step 1 - Order Planner'!$C$28:$C$55,$K23) ->  | G23: =IF(OR($C$16=0,$C$17=0),"Please Enter Acreage",IF(C23="Greens",F23/$C$17,IF(C23="Fairways",F23/$C$16,0))) ->  | H23: =SUMIFS('Step 1 - Order Planner'!#REF!,'Step 1 - Order Planner'!#REF!,$K23)+SUMIFS('Step 1 - Order Planner'!L$28:L$55,'Step 1 - Order Planner'!$C$28:$C$55,$K23) ->  | I23: =IF(OR($C$16=0,$C$17=0),"Please Enter Acreage",IF(C23="Greens",H23/$C$17,IF(C23="Fairways",H23/$C$16,0))) ->  | K23: 59021463
B24: 50 x .49 lb. | D24: =SUMIFS('Step 1 - Order Planner'!#REF!,'Step 1 - Order Planner'!#REF!,$K24)+SUMIFS('Step 1 - Order Planner'!J$28:J$55,'Step 1 - Order Planner'!$C$28:$C$55,$K24) ->  | E24: 0 | F24: =SUMIFS('Step 1 - Order Planner'!#REF!,'Step 1 - Order Planner'!#REF!,$K24)+SUMIFS('Step 1 - Order Planner'!K$28:K$55,'Step 1 - Order Planner'!$C$28:$C$55,$K24) ->  | G24: =IF(OR($C$16=0,$C$17=0),"Please Enter Acreage",IF(C24="Greens",F24/$C$17,IF(C24="Fairways",F24/$C$16,0))) -> 0 | H24: =SUMIFS('Step 1 - Order Planner'!#REF!,'Step 1 - Order Planner'!#REF!,$K24)+SUMIFS('Step 1 - Order Planner'!L$28:L$55,'Step 1 - Order Planner'!$C$28:$C$55,$K24) ->  | I24: 0 | K24: 59012825
A25: Honor | B25: 1 x 36 lb | D25: =SUMIFS('Step 1 - Order Planner'!#REF!,'Step 1 - Order Planner'!#REF!,$K25)+SUMIFS('Step 1 - Order Planner'!J$28:J$55,'Step 1 - Order Planner'!$C$28:$C$55,$K25) ->  | E25: 0 | F25: =SUMIFS('Step 1 - Order Planner'!#REF!,'Step 1 - Order Planner'!#REF!,$K25)+SUMIFS('Step 1 - Order Planner'!K$28:K$55,'Step 1 - Order Planner'!$C$28:$C$55,$K25) ->  | G25: =IF(OR($C$16=0,$C$17=0),"Please Enter Acreage",IF(C25="Greens",F25/$C$17,IF(C25="Fairways",F25/$C$16,0))) -> 0 | H25: =SUMIFS('Step 1 - Order Planner'!#REF!,'Step 1 - Order Planner'!#REF!,$K25)+SUMIFS('Step 1 - Order Planner'!L$28:L$55,'Step 1 - Order Planner'!$C$28:$C$55,$K25) ->  | I25: 0 | K25: 59012885
B26: 6 x 3 lb | D26: =SUMIFS('Step 1 - Order Planner'!#REF!,'Step 1 - Order Planner'!#REF!,$K26)+SUMIFS('Step 1 - Order Planner'!J$28:J$55,'Step 1 - Order Planner'!$C$28:$C$55,$K26) ->  | E26: 0 | F26: =SUMIFS('Step 1 - Order Planner'!#REF!,'Step 1 - Order Planner'!#REF!,$K26)+SUMIFS('Step 1 - Order Planner'!K$28:K$55,'Step 1 - Order Planner'!$C$28:$C$55,$K26) ->  | G26: 0 | H26: =SUMIFS('Step 1 - Order Planner'!#REF!,'Step 1 - Order Planner'!#REF!,$K26)+SUMIFS('Step 1 - Order Planner'!L$28:L$55,'Step 1 - Order Planner'!$C$28:$C$55,$K26) ->  | I26: 0 | K26: 59012350
A27: Insignia SC | B27: 2 x 2.5 gal | D27: =SUMIFS('Step 1 - Order Planner'!#REF!,'Step 1 - Order Planner'!#REF!,$K27)+SUMIFS('Step 1 - Order Planner'!J$28:J$55,'Step 1 - Order Planner'!$C$28:$C$55,$K27) ->  | E27: 0 | F27: =SUMIFS('Step 1 - Order Planner'!#REF!,'Step 1 - Order Planner'!#REF!,$K27)+SUMIFS('Step 1 - Order Planner'!K$28:K$55,'Step 1 - Order Planner'!$C$28:$C$55,$K27) ->  | G27: =IF(OR($C$16=0,$C$17=0),"Please Enter Acreage",IF(C27="Greens",F27/$C$17,IF(C27="Fairways",F27/$C$16,0))) -> 0 | H27: =SUMIFS('Step 1 - Order Planner'!#REF!,'Step 1 - Order Planner'!#REF!,$K27)+SUMIFS('Step 1 - Order Planner'!L$28:L$55,'Step 1 - Order Planner'!$C$28:$C$55,$K27) ->  | I27: 0 | K27: 59014135
B28: 4 x 30.5 oz | D28: =SUMIFS('Step 1 - Order Planner'!#REF!,'Step 1 - Order Planner'!#REF!,$K28)+SUMIFS('Step 1 - Order Planner'!J$28:J$55,'Step 1 - Order Planner'!$C$28:$C$55,$K28) ->  | E28: 0 | F28: =SUMIFS('Step 1 - Order Planner'!#REF!,'Step 1 - Order Planner'!#REF!,$K28)+SUMIFS('Step 1 - Order Planner'!K$28:K$55,'Step 1 - Order Planner'!$C$28:$C$55,$K28) ->  | G28: =IF(OR($C$16=0,$C$17=0),"Please Enter Acreage",IF(C28="Greens",F28/$C$17,IF(C28="Fairways",F28/$C$16,0))) -> 0 | H28: =SUMIFS('Step 1 - Order Planner'!#REF!,'Step 1 - Order Planner'!#REF!,$K28)+SUMIFS('Step 1 - Order Planner'!L$28:L$55,'Step 1 - Order Planner'!$C$28:$C$55,$K28) ->  | I28: =IF(OR($C$16=0,$C$17=0),"Please Enter Acreage",IF(C28="Greens",H28/$C$17,IF(C28="Fairways",H28/$C$16,0))) -> 0 | K28: 59014134
A29: Lexicon | B29: 4 x 21 oz | D29: =SUMIFS('Step 1 - Order Planner'!#REF!,'Step 1 - Order Planner'!#REF!,$K29)+SUMIFS('Step 1 - Order Planner'!J$28:J$55,'Step 1 - Order Planner'!$C$28:$C$55,$K29) ->  | E29: 0 | F29: =SUMIFS('Step 1 - Order Planner'!#REF!,'Step 1 - Order Planner'!#REF!,$K29)+SUMIFS('Step 1 - Order Planner'!K$28:K$55,'Step 1 - Order Planner'!$C$28:$C$55,$K29) ->  | G29: 0 | H29: =SUMIFS('Step 1 - Order Planner'!#REF!,'Step 1 - Order Planner'!#REF!,$K29)+SUMIFS('Step 1 - Order Planner'!L$28:L$55,'Step 1 - Order Planner'!$C$28:$C$55,$K29) ->  | I29: 0 | K29: 59013840
A30: Maxtima | B30: 4 x26 oz | D30: =SUMIFS('Step 1 - Order Planner'!#REF!,'Step 1 - Order Planner'!#REF!,$K30)+SUMIFS('Step 1 - Order Planner'!J$28:J$55,'Step 1 - Order Planner'!$C$28:$C$55,$K30) ->  | E30: 0 | F30: =SUMIFS('Step 1 - Order Planner'!#REF!,'Step 1 - Order Planner'!#REF!,$K30)+SUMIFS('Step 1 - Order Planner'!K$28:K$55,'Step 1 - Order Planner'!$C$28:$C$55,$K30) ->  | G30: 0 | H30: =SUMIFS('Step 1 - Order Planner'!#REF!,'Step 1 - Order Planner'!#REF!,$K30)+SUMIFS('Step 1 - Order Planner'!L$28:L$55,'Step 1 - Order Planner'!$C$28:$C$55,$K30) ->  | I30: 0 | K30: 59018087
B31: 2x 2.5 gal | D31: =SUMIFS('Step 1 - Order Planner'!#REF!,'Step 1 - Order Planner'!#REF!,$K31)+SUMIFS('Step 1 - Order Planner'!J$28:J$55,'Step 1 - Order Planner'!$C$28:$C$55,$K31) ->  | E31: 0 | F31: =SUMIFS('Step 1 - Order Planner'!#REF!,'Step 1 - Order Planner'!#REF!,$K31)+SUMIFS('Step 1 - Order Planner'!K$28:K$55,'Step 1 - Order Planner'!$C$28:$C$55,$K31) ->  | G31: =IF(OR($C$16=0,$C$17=0),"Please Enter Acreage",IF(C31="Greens",F31/$C$17,IF(C31="Fairways",F31/$C$16,0))) -> 0 | H31: =SUMIFS('Step 1 - Order Planner'!#REF!,'Step 1 - Order Planner'!#REF!,$K31)+SUMIFS('Step 1 - Order Planner'!L$28:L$55,'Step 1 - Order Planner'!$C$28:$C$55,$K31) ->  | I31: 0 | K31: 59018071
A32: Navicon | B32: 4x37 fl oz | D32: =SUMIFS('Step 1 - Order Planner'!#REF!,'Step 1 - Order Planner'!#REF!,$K32)+SUMIFS('Step 1 - Order Planner'!J$28:J$55,'Step 1 - Order Planner'!$C$28:$C$55,$K32) ->  | E32: 0 | F32: =SUMIFS('Step 1 - Order Planner'!#REF!,'Step 1 - Order Planner'!#REF!,$K32)+SUMIFS('Step 1 - Order Planner'!K$28:K$55,'Step 1 - Order Planner'!$C$28:$C$55,$K32) ->  | G32: 0 | H32: =SUMIFS('Step 1 - Order Planner'!#REF!,'Step 1 - Order Planner'!#REF!,$K32)+SUMIFS('Step 1 - Order Planner'!L$28:L$55,'Step 1 - Order Planner'!$C$28:$C$55,$K32) ->  | I32: 0 | K32: 59018094
B33: 2x2.5 gal | D33: =SUMIFS('Step 1 - Order Planner'!#REF!,'Step 1 - Order Planner'!#REF!,$K33)+SUMIFS('Step 1 - Order Planner'!J$28:J$55,'Step 1 - Order Planner'!$C$28:$C$55,$K33) ->  | E33: 0 | F33: =SUMIFS('Step 1 - Order Planner'!#REF!,'Step 1 - Order Planner'!#REF!,$K33)+SUMIFS('Step 1 - Order Planner'!K$28:K$55,'Step 1 - Order Planner'!$C$28:$C$55,$K33) ->  | G33: 0 | H33: =SUMIFS('Step 1 - Order Planner'!#REF!,'Step 1 - Order Planner'!#REF!,$K33)+SUMIFS('Step 1 - Order Planner'!L$28:L$55,'Step 1 - Order Planner'!$C$28:$C$55,$K33) ->  | I33: 0 | K33: 59018095
A34: Pillar G | B34: 15 lbs | D34: =SUMIFS('Step 1 - Order Planner'!#REF!,'Step 1 - Order Planner'!#REF!,$K34)+SUMIFS('Step 1 - Order Planner'!J$28:J$55,'Step 1 - Order Planner'!$C$28:$C$55,$K34) ->  | E34: 0 | F34: =SUMIFS('Step 1 - Order Planner'!#REF!,'Step 1 - Order Planner'!#REF!,$K34)+SUMIFS('Step 1 - Order Planner'!K$28:K$55,'Step 1 - Order Planner'!$C$28:$C$55,$K34) ->  | G34: =IF(OR($C$16=0,$C$17=0),"Please Enter Acreage",IF(C34="Greens",F34/$C$17,IF(C34="Fairways",F34/$C$16,0))) -> 0 | H34: =SUMIFS('Step 1 - Order Planner'!#REF!,'Step 1 - Order Planner'!#REF!,$K34)+SUMIFS('Step 1 - Order Planner'!L$28:L$55,'Step 1 - Order Planner'!$C$28:$C$55,$K34) ->  | I34: 0 | K34: 59017959
B35: 30 lbs | D35: =SUMIFS('Step 1 - Order Planner'!#REF!,'Step 1 - Order Planner'!#REF!,$K35)+SUMIFS('Step 1 - Order Planner'!J$28:J$55,'Step 1 - Order Planner'!$C$28:$C$55,$K35) ->  | E35: 0 | F35: =SUMIFS('Step 1 - Order Planner'!#REF!,'Step 1 - Order Planner'!#REF!,$K35)+SUMIFS('Step 1 - Order Planner'!K$28:K$55,'Step 1 - Order Planner'!$C$28:$C$55,$K35) ->  | G35: 0 | H35: =SUMIFS('Step 1 - Order Planner'!#REF!,'Step 1 - Order Planner'!#REF!,$K35)+SUMIFS('Step 1 - Order Planner'!L$28:L$55,'Step 1 - Order Planner'!$C$28:$C$55,$K35) ->  | I35: 0 | K35: 59012784
A36: Xzemplar | B36: 2 x 114 oz | D36: =SUMIFS('Step 1 - Order Planner'!#REF!,'Step 1 - Order Planner'!#REF!,$K36)+SUMIFS('Step 1 - Order Planner'!J$28:J$55,'Step 1 - Order Planner'!$C$28:$C$55,$K36) ->  | E36: =IF(OR($C$16=0,$C$17=0),"Please Enter Acreage",IF(C36="Greens",D36/$C$17,IF(C36="Fairways",D36/$C$16,0))) -> 0 | F36: =SUMIFS('Step 1 - Order Planner'!#REF!,'Step 1 - Order Planner'!#REF!,$K36)+SUMIFS('Step 1 - Order Planner'!K$28:K$55,'Step 1 - Order Planner'!$C$28:$C$55,$K36) ->  | G36: =IF(OR($C$16=0,$C$17=0),"Please Enter Acreage",IF(C36="Greens",F36/$C$17,IF(C36="Fairways",F36/$C$16,0))) -> 0 | H36: =SUMIFS('Step 1 - Order Planner'!#REF!,'Step 1 - Order Planner'!#REF!,$K36)+SUMIFS('Step 1 - Order Planner'!L$28:L$55,'Step 1 - Order Planner'!$C$28:$C$55,$K36) ->  | I36: =IF(OR($C$16=0,$C$17=0),"Please Enter Acreage",IF(C36="Greens",H36/$C$17,IF(C36="Fairways",H36/$C$16,0))) -> 0 | K36: 59013833
B37: 4 x 11.4 oz | D37: =SUMIFS('Step 1 - Order Planner'!#REF!,'Step 1 - Order Planner'!#REF!,$K37)+SUMIFS('Step 1 - Order Planner'!J$28:J$55,'Step 1 - Order Planner'!$C$28:$C$55,$K37) ->  | E37: 0 | F37: =SUMIFS('Step 1 - Order Planner'!#REF!,'Step 1 - Order Planner'!#REF!,$K37)+SUMIFS('Step 1 - Order Planner'!K$28:K$55,'Step 1 - Order Planner'!$C$28:$C$55,$K37) ->  | G37: 0 | H37: =SUMIFS('Step 1 - Order Planner'!#REF!,'Step 1 - Order Planner'!#REF!,$K37)+SUMIFS('Step 1 - Order Planner'!L$28:L$55,'Step 1 - Order Planner'!$C$28:$C$55,$K37) ->  | I37: 0 | K37: 59014120
A40: BASF has developed this calculator using formulas that approximate the rebate amount under the 2020 Early Order Program. The calculator is being shared with you for information purposes only and for your private use in preparing your own calculations. While every effort has been made to ensure the accuracy and reliability of the information and formulas, no guarantee is given nor responsibility taken by BASF for the accuracy of the calculator or the applicability to your particular circumstances. BASF PROVIDES THIS CALCULATOR AND ANY RESULT THEREFROM AS IS WITH ALL FAULTS AND WITH NO WARRANTY WHATSOEVER, EITHER EXPRESS OR IMPLIED, INCLUDING ANY WARRANTIES OF MERCHANTABILITY AND FITNESS FOR PARTICULAR PURPOSE. YOU ASSUME ANY AND ALL RISKS IN USING THE CALCULATOR AND RELYING ON THE INFORMATION CONTAINED HEREIN. IN NO CIRCUMSTANCES SHALL BASF BE LIABLE FOR ANY DAMAGES WHATSOEVER, INCLUDING BUT NOT LIMITED TO LOSS OF PROFIT, LOSS OF BUSINESS, LOSS OF SAVINGS, OR CONSEQUENTIAL DAMAGES, EVEN IF BASF HAS BEEN NOTIFIED AS SUCH.

Sheet Step 2 - Review Order
A13: =NOW() -> 2023-08-08T16:58:31.710 | D13: Rebate Summary
A14: Order For | B14: Order Prepared By | D14: Total Purchase | F14: ='Step 1 - Order Planner'!H17 -> 0
A15: <Enter Customer Name> | B15: <Enter Name> | D15: Across-The-Lawn-Solutions Rebate Earned | F15: ='Step 1 - Order Planner'!B17 -> 0%
A16: <Enter Business Name> | B16: <Enter Business Name>
A17: <City, ST Zip Code> | B17: <City, ST Zip Code>
A18: <Phone> | B18: <Phone> | D18: Total EOP Rebate | F18: ='Step 1 - Order Planner'!H22 -> 0
A19: <email address> | B19: <email address>
A23: Your Order Detail
A25: Product | B25: Package | C25: Article No. | D25: Redemption Value | E25: Quantity | F25: Total
A26: Insecticide Subtotal | F26: =SUM(F27:F31) -> 0
A27: =VLOOKUP($C27,'Article Reference'!$A$3:$D$49,2,FALSE) -> Alucion® 35 WG insecticide | B27: =VLOOKUP($C27,'Article Reference'!$A$3:$D$49,3,FALSE) -> 10 x 2.375 lbs | C27: 59024020 | D27: =VLOOKUP($C27,'Article Reference'!$A$3:$D$49,4,FALSE) -> $2,442.90 | E27: =VLOOKUP(C27,'Step 1 - Order Planner'!$C$25:$H$55,4,FALSE)+VLOOKUP(C27,'Step 1 - Order Planner'!$C$25:$H$55,6,FALSE) -> 0 | F27: =E27*D27 -> 0
A28: =VLOOKUP($C28,'Article Reference'!$A$3:$D$49,2,FALSE) -> Amdro Pro Fire Ant Bait | B28: =VLOOKUP($C28,'Article Reference'!$A$3:$D$49,3,FALSE) -> 1 x 25lbs | C28: 59021451 | D28: =VLOOKUP($C28,'Article Reference'!$A$3:$D$49,4,FALSE) -> $536.25 | E28: =VLOOKUP(C28,'Step 1 - Order Planner'!$C$25:$H$55,4,FALSE)+VLOOKUP(C28,'Step 1 - Order Planner'!$C$25:$H$55,6,FALSE) -> 0 | F28: =E28*D28 -> 0
A29: =VLOOKUP($C29,'Article Reference'!$A$3:$D$49,2,FALSE) -> Siesta® Fire Ant Bait | B29: =VLOOKUP($C29,'Article Reference'!$A$3:$D$49,3,FALSE) -> 15 lbs | C29: 59011057 | D29: =VLOOKUP($C29,'Article Reference'!$A$3:$D$49,4,FALSE) -> $294.19 | E29: =VLOOKUP(C29,'Step 1 - Order Planner'!$C$25:$H$55,4,FALSE)+VLOOKUP(C29,'Step 1 - Order Planner'!$C$25:$H$55,6,FALSE) -> 0 | F29: 0
A30: =VLOOKUP($C30,'Article Reference'!$A$3:$D$49,2,FALSE) -> Sultan® miticide | B30: =VLOOKUP($C30,'Article Reference'!$A$3:$D$49,3,FALSE) -> 4 x 0.125 gal | C30: 59023753 | D30: =VLOOKUP($C30,'Article Reference'!$A$3:$D$49,4,FALSE) -> $709.68 | E30: =VLOOKUP(C30,'Step 1 - Order Planner'!$C$25:$H$55,4,FALSE)+VLOOKUP(C30,'Step 1 - Order Planner'!$C$25:$H$55,6,FALSE) -> 0 | F30: 0
A31: =VLOOKUP($C31,'Article Reference'!$A$3:$D$49,2,FALSE) -> Ventigra® insecticide | B31: =VLOOKUP($C31,'Article Reference'!$A$3:$D$49,3,FALSE) -> 4 x 20 oz | C31: 59014680 | D31: =VLOOKUP($C31,'Article Reference'!$A$3:$D$49,4,FALSE) -> $1,266.40 | E31: =VLOOKUP(C31,'Step 1 - Order Planner'!$C$25:$H$55,4,FALSE)+VLOOKUP(C31,'Step 1 - Order Planner'!$C$25:$H$55,6,FALSE) -> 0 | F31: =E31*D31 -> 0
A32: Fungicide Subtotal | F32: =SUM(F33:F42) -> 0
A33: =VLOOKUP($C33,'Article Reference'!$A$3:$D$49,2,FALSE) -> Insignia® SC Intrinsic® brand fungicide | B33: =VLOOKUP($C33,'Article Reference'!$A$3:$D$49,3,FALSE) -> 4 x 30.5 fl oz | C33: 59014134 | D33: =VLOOKUP($C33,'Article Reference'!$A$3:$D$49,4,FALSE) -> $2,169.16 | E33: =VLOOKUP(C33,'Step 1 - Order Planner'!$C$25:$H$55,4,FALSE)+VLOOKUP(C33,'Step 1 - Order Planner'!$C$25:$H$55,6,FALSE) -> 0 | F33: 0
A34: =VLOOKUP($C34,'Article Reference'!$A$3:$D$49,2,FALSE) -> Insignia® SC Intrinsic® brand fungicide | B34: =VLOOKUP($C34,'Article Reference'!$A$3:$D$49,3,FALSE) -> 2 x 2.5 gal | C34: 59014135 | D34: =VLOOKUP($C34,'Article Reference'!$A$3:$D$49,4,FALSE) -> $7,225.10 | E34: =VLOOKUP(C34,'Step 1 - Order Planner'!$C$25:$H$55,4,FALSE)+VLOOKUP(C34,'Step 1 - Order Planner'!$C$25:$H$55,6,FALSE) -> 0 | F34: 0
A35: =VLOOKUP($C35,'Article Reference'!$A$3:$D$49,2,FALSE) -> Insignia® SC Intrinsic® brand fungicide | B35: =VLOOKUP($C35,'Article Reference'!$A$3:$D$49,3,FALSE) -> 4 x 122 oz | C35: 59020732 | D35: =VLOOKUP($C35,'Article Reference'!$A$3:$D$49,4,FALSE) -> $9,760.00 | E35: =VLOOKUP(C35,'Step 1 - Order Planner'!$C$25:$H$55,4,FALSE)+VLOOKUP(C35,'Step 1 - Order Planner'!$C$25:$H$55,6,FALSE) -> 0 | F35: 0
A36: =VLOOKUP($C36,'Article Reference'!$A$3:$D$49,2,FALSE) -> Orkestra® Intrinsic® brand Fungicide | B36: =VLOOKUP($C36,'Article Reference'!$A$3:$D$49,3,FALSE) -> 4 x 16 oz | C36: 59014379 | D36: =VLOOKUP($C36,'Article Reference'!$A$3:$D$49,4,FALSE) -> $668.80 | E36: =VLOOKUP(C36,'Step 1 - Order Planner'!$C$25:$H$55,4,FALSE)+VLOOKUP(C36,'Step 1 - Order Planner'!$C$25:$H$55,6,FALSE) -> 0 | F36: 0
A37: =VLOOKUP($C37,'Article Reference'!$A$3:$D$49,2,FALSE) -> Pageant® Intrinsic® brand Fungicide | B37: =VLOOKUP($C37,'Article Reference'!$A$3:$D$49,3,FALSE) -> 4 x 1 lb | C37: 59012349 | D37: =VLOOKUP($C37,'Article Reference'!$A$3:$D$49,4,FALSE) -> $443.36 | E37: =VLOOKUP(C37,'Step 1 - Order Planner'!$C$25:$H$55,4,FALSE)+VLOOKUP(C37,'Step 1 - Order Planner'!$C$25:$H$55,6,FALSE) -> 0 | F37: =E37*D37 -> 0
A38: =VLOOKUP($C38,'Article Reference'!$A$3:$D$49,2,FALSE) -> Pillar® G Intrinsic® brand fungicide | B38: =VLOOKUP($C38,'Article Reference'!$A$3:$D$49,3,FALSE) -> 15 lbs bag | C38: 59017959 | D38: =VLOOKUP($C38,'Article Reference'!$A$3:$D$49,4,FALSE) -> $56.63 | E38: =VLOOKUP(C38,'Step 1 - Order Planner'!$C$25:$H$55,4,FALSE)+VLOOKUP(C38,'Step 1 - Order Planner'!$C$25:$H$55,6,FALSE) -> 0 | F38: 0
A39: =VLOOKUP($C39,'Article Reference'!$A$3:$D$49,2,FALSE) -> Pillar® G Intrinsic® brand fungicide | B39: =VLOOKUP($C39,'Article Reference'!$A$3:$D$49,3,FALSE) -> 30 lbs bag | C39: 59012784 | D39: =VLOOKUP($C39,'Article Reference'!$A$3:$D$49,4,FALSE) -> $105.00 | E39: =VLOOKUP(C39,'Step 1 - Order Planner'!$C$25:$H$55,4,FALSE)+VLOOKUP(C39,'Step 1 - Order Planner'!$C$25:$H$55,6,FALSE) -> 0 | F39: 0
A40: =VLOOKUP($C40,'Article Reference'!$A$3:$D$49,2,FALSE) -> Pillar® SC Intrinsic brand fungicide | B40: =VLOOKUP($C40,'Article Reference'!$A$3:$D$49,3,FALSE) -> 4 x 43.5 oz | C40: 59026395 | D40: =VLOOKUP($C40,'Article Reference'!$A$3:$D$49,4,FALSE) -> $856.95 | E40: =VLOOKUP(C40,'Step 1 - Order Planner'!$C$25:$H$55,4,FALSE)+VLOOKUP(C40,'Step 1 - Order Planner'!$C$25:$H$55,6,FALSE) -> 0 | F40: 0
A41: =VLOOKUP($C41,'Article Reference'!$A$3:$D$49,2,FALSE) -> Xzemplar® fungicide | B41: =VLOOKUP($C41,'Article Reference'!$A$3:$D$49,3,FALSE) -> 2 x 114 oz | C41: 59013833 | D41: =VLOOKUP($C41,'Article Reference'!$A$3:$D$49,4,FALSE) -> $3,451.92 | E41: =VLOOKUP(C41,'Step 1 - Order Planner'!$C$25:$H$55,4,FALSE)+VLOOKUP(C41,'Step 1 - Order Planner'!$C$25:$H$55,6,FALSE) -> 0 | F41: =E41*D41 -> 0
A42: =VLOOKUP($C42,'Article Reference'!$A$3:$D$49,2,FALSE) -> Xzemplar® fungicide | B42: =VLOOKUP($C42,'Article Reference'!$A$3:$D$49,3,FALSE) -> 4 x 11.4 oz | C42: 59014120 | D42: =VLOOKUP($C42,'Article Reference'!$A$3:$D$49,4,FALSE) -> $808.04 | E42: =VLOOKUP(C42,'Step 1 - Order Planner'!$C$25:$H$55,4,FALSE)+VLOOKUP(C42,'Step 1 - Order Planner'!$C$25:$H$55,6,FALSE) -> 0 | F42: 0
A43: Herbicide Subtotal | F43: =SUM(F44:F55) -> 0
A44: =VLOOKUP($C44,'Article Reference'!$A$3:$D$49,2,FALSE) -> Basagran® herbicide | B44: =VLOOKUP($C44,'Article Reference'!$A$3:$D$49,3,FALSE) -> 2 x 1 gal | C44: 59011636 | D44: =VLOOKUP($C44,'Article Reference'!$A$3:$D$49,4,FALSE) -> $125.58 | E44: =VLOOKUP(C44,'Step 1 - Order Planner'!$C$25:$H$55,4,FALSE)+VLOOKUP(C44,'Step 1 - Order Planner'!$C$25:$H$55,6,FALSE) -> 0 | F44: =E44*D44 -> 0
A45: =VLOOKUP($C45,'Article Reference'!$A$3:$D$49,2,FALSE) -> Drive® XLR8 herbicide | B45: =VLOOKUP($C45,'Article Reference'!$A$3:$D$49,3,FALSE) -> 4 x 0.5 gal | C45: 59011404 | D45: =VLOOKUP($C45,'Article Reference'!$A$3:$D$49,4,FALSE) -> $221.25 | E45: =VLOOKUP(C45,'Step 1 - Order Planner'!$C$25:$H$55,4,FALSE)+VLOOKUP(C45,'Step 1 - Order Planner'!$C$25:$H$55,6,FALSE) -> 0 | F45: 0
A46: =VLOOKUP($C46,'Article Reference'!$A$3:$D$49,2,FALSE) -> Drive® XLR8 herbicide | B46: =VLOOKUP($C46,'Article Reference'!$A$3:$D$49,3,FALSE) -> 2 x 2.5 gal | C46: 59018043 | D46: =VLOOKUP($C46,'Article Reference'!$A$3:$D$49,4,FALSE) -> $514.44 | E46: =VLOOKUP(C46,'Step 1 - Order Planner'!$C$25:$H$55,4,FALSE)+VLOOKUP(C46,'Step 1 - Order Planner'!$C$25:$H$55,6,FALSE) -> 0 | F46: =E46*D46 -> 0
A47: =VLOOKUP($C47,'Article Reference'!$A$3:$D$49,2,FALSE) -> Finale® XL T&O herbicide | B47: =VLOOKUP($C47,'Article Reference'!$A$3:$D$49,3,FALSE) -> 2 x 2.5 gal | C47: 59024131 | D47: =VLOOKUP($C47,'Article Reference'!$A$3:$D$49,4,FALSE) -> $543.75 | E47: =VLOOKUP(C47,'Step 1 - Order Planner'!$C$25:$H$55,4,FALSE)+VLOOKUP(C47,'Step 1 - Order Planner'!$C$25:$H$55,6,FALSE) -> 0 | F47: 0
A48: =VLOOKUP($C48,'Article Reference'!$A$3:$D$49,2,FALSE) -> FreeHand® 1.75G herbicide | B48: =VLOOKUP($C48,'Article Reference'!$A$3:$D$49,3,FALSE) -> 1 x 50 lb | C48: 59011296 | D48: =VLOOKUP($C48,'Article Reference'!$A$3:$D$49,4,FALSE) -> $109.50 | E48: =VLOOKUP(C48,'Step 1 - Order Planner'!$C$25:$H$55,4,FALSE)+VLOOKUP(C48,'Step 1 - Order Planner'!$C$25:$H$55,6,FALSE) -> 0 | F48: =E48*D48 -> 0
A49: =VLOOKUP($C49,'Article Reference'!$A$3:$D$49,2,FALSE) -> Pendulum® 2G herbicide | B49: =VLOOKUP($C49,'Article Reference'!$A$3:$D$49,3,FALSE) -> 20 lbs bag | C49: 59017972 | D49: =VLOOKUP($C49,'Article Reference'!$A$3:$D$49,4,FALSE) -> $48.50 | E49: =VLOOKUP(C49,'Step 1 - Order Planner'!$C$25:$H$55,4,FALSE)+VLOOKUP(C49,'Step 1 - Order Planner'!$C$25:$H$55,6,FALSE) -> 0 | F49: =E49*D49 -> 0
A50: =VLOOKUP($C50,'Article Reference'!$A$3:$D$49,2,FALSE) -> Pendulum® 2G herbicide | B50: =VLOOKUP($C50,'Article Reference'!$A$3:$D$49,3,FALSE) -> 40 lbs bag | C50: 59015072 | D50: =VLOOKUP($C50,'Article Reference'!$A$3:$D$49,4,FALSE) -> $85.50 | E50: =VLOOKUP(C50,'Step 1 - Order Planner'!$C$25:$H$55,4,FALSE)+VLOOKUP(C50,'Step 1 - Order Planner'!$C$25:$H$55,6,FALSE) -> 0 | F50: 0
A51: =VLOOKUP($C51,'Article Reference'!$A$3:$D$49,2,FALSE) -> Pendulum® AquaCap herbicide | B51: =VLOOKUP($C51,'Article Reference'!$A$3:$D$49,3,FALSE) -> 2 x 2.5 gal | C51: 59049276 | D51: =VLOOKUP($C51,'Article Reference'!$A$3:$D$49,4,FALSE) -> $281.25 | E51: =VLOOKUP(C51,'Step 1 - Order Planner'!$C$25:$H$55,4,FALSE)+VLOOKUP(C51,'Step 1 - Order Planner'!$C$25:$H$55,6,FALSE) -> 0 | F51: 0
A52: =VLOOKUP($C52,'Article Reference'!$A$3:$D$49,2,FALSE) -> Pendulum® AquaCap herbicide | B52: =VLOOKUP($C52,'Article Reference'!$A$3:$D$49,3,FALSE) -> 1 x 15 gal | C52: 59011279 | D52: =VLOOKUP($C52,'Article Reference'!$A$3:$D$49,4,FALSE) -> $983.10 | E52: =VLOOKUP(C52,'Step 1 - Order Planner'!$C$25:$H$55,4,FALSE)+VLOOKUP(C52,'Step 1 - Order Planner'!$C$25:$H$55,6,FALSE) -> 0 | F52: 0
A53: =VLOOKUP($C53,'Article Reference'!$A$3:$D$49,2,FALSE) -> Pylex® herbicide | B53: =VLOOKUP($C53,'Article Reference'!$A$3:$D$49,3,FALSE) -> 4 x 4 oz | C53: 59018005 | D53: =VLOOKUP($C53,'Article Reference'!$A$3:$D$49,4,FALSE) -> $1,376.00 | E53: =VLOOKUP(C53,'Step 1 - Order Planner'!$C$25:$H$55,4,FALSE)+VLOOKUP(C53,'Step 1 - Order Planner'!$C$25:$H$55,6,FALSE) -> 0 | F53: 0
A54: =VLOOKUP($C54,'Article Reference'!$A$3:$D$49,2,FALSE) -> Segment® II herbicide | B54: =VLOOKUP($C54,'Article Reference'!$A$3:$D$49,3,FALSE) -> 2 x 2.5 gal | C54: 59014427 | D54: =VLOOKUP($C54,'Article Reference'!$A$3:$D$49,4,FALSE) -> $1,562.50 | E54: =VLOOKUP(C54,'Step 1 - Order Planner'!$C$25:$H$55,4,FALSE)+VLOOKUP(C54,'Step 1 - Order Planner'!$C$25:$H$55,6,FALSE) -> 0 | F54: 0
A55: =VLOOKUP($C55,'Article Reference'!$A$3:$D$49,2,FALSE) -> Tower® herbicide | B55: =VLOOKUP($C55,'Article Reference'!$A$3:$D$49,3,FALSE) -> 2 x 2.5 gal | C55: 59014247 | D55: =VLOOKUP($C55,'Article Reference'!$A$3:$D$49,4,FALSE) -> $1,972.50 | E55: =VLOOKUP(C55,'Step 1 - Order Planner'!$C$25:$H$55,4,FALSE)+VLOOKUP(C55,'Step 1 - Order Planner'!$C$25:$H$55,6,FALSE) -> 0 | F55: =E55*D55 -> 0
A56: Total | F56: =F14 -> 0
A58: BASF has developed this calculator using formulas that approximate the rebate amount under the 2024 Early Order Program. The calculator is being shared with you for information purposes only and for your private use in preparing your own calculations. While every effort has been made to ensure the accuracy and reliability of the information and formulas, no guarantee is given nor responsibility taken by BASF for the accuracy of the calculator or the applicability to your particular circumstances. BASF PROVIDES THIS CALCULATOR AND ANY RESULT THEREFROM AS IS WITH ALL FAULTS AND WITH NO WARRANTY WHATSOEVER, EITHER EXPRESS OR IMPLIED, INCLUDING ANY WARRANTIES OF MERCHANTABILITY AND FITNESS FOR PARTICULAR PURPOSE. YOU ASSUME ANY AND ALL RISKS IN USING THE CALCULATOR AND RELYING ON THE INFORMATION CONTAINED HEREIN. IN NO CIRCUMSTANCES SHALL BASF BE LIABLE FOR ANY DAMAGES WHATSOEVER, INCLUDING BUT NOT LIMITED TO LOSS OF PROFIT, LOSS OF BUSINESS, LOSS OF SAVINGS, OR CONSEQUENTIAL DAMAGES, EVEN IF BASF HAS BEEN NOTIFIED AS SUCH.

Sheet Range Reference (hidden)
A1: Standard | C1: Oct | D1: Nov-Dec
A2: Low | B2: High | C2: Discount | D2: Discount | E2: Oct Applied | G2: Rebate Applied | H2: ='Step 1 - Order Planner'!H17 -> 0
A3: $3,000.00 | B3: =A4-1 -> $7,999.00 | C3: 4% | D3: 4% | E3: =IF(AND(('Step 1 - Order Planner'!$G$56)>=2000,'Step 1 - Order Planner'!$G$56>=$A3,'Step 1 - Order Planner'!$G$56<=$B3),C3) -> FALSE | G3: =SUM(E3:F3) -> 0% | H3: =A3-$H$2 -> $3,000.00 | I3: 4%
A4: $8,000.00 | B4: =A5-1 -> $19,999.00 | C4: 6% | D4: 6% | E4: =IF(AND(('Step 1 - Order Planner'!$G$56)>=2000,'Step 1 - Order Planner'!$G$56>=$A4,'Step 1 - Order Planner'!$G$56<=$B4),C4) -> FALSE | G4: =SUM(E4:F4) -> 0% | H4: =A4-$H$2 -> $8,000.00 | I4: 6%
A5: $20,000.00 | B5: $1,000,000.00 | C5: 12% | D5: 12% | E5: =IF(AND(('Step 1 - Order Planner'!$G$56)>=2000,'Step 1 - Order Planner'!$G$56>=$A5,'Step 1 - Order Planner'!$G$56<=$B5),C5) -> FALSE | G5: =SUM(E5:F5) -> 0% | H5: =A5-$H$2 -> $20,000.00 | I5: 12%
C6: DISCOUNT | E6: =SUM(E3:E5) -> 0% | G6: =SUM(E6:F6) -> 0% | H6: =MIN(IF(H3:H5>0,H3:H5)) -> $3,000.00

Sheet Article Reference (hidden)
A1: 2022 Qualifying Fungicides
A2: Article Number | B2: Qaulifying Non-Agency Products | C2: Package | D2: Price | E2: CA Redemption | F2: Case UOM | G2: Price/UOM | H2: Case Price
A3: 59021463 | B3: Emerald® fungicide | C3: 10 x 0.49 lb | D3: $1,187.40 | E3: $1,213.20 | F3: =10*0.49 -> 4.9 | G3: =H3/F3 -> $242.33 | H3: =D3 -> $1,187.40
A4: 59014003 | B4: Encartis® fungicide | C4: 2 x 2.5 gal | D4: $645.66 | E4: $659.70 | F4: =2*2.5 -> 5 | G4: =H4/F4 -> $129.13 | H4: $645.66
A5: 59012350 | B5: Honor® Intrinsic® brand fungicide | C5: 6 x 3 lb | D5: $3,303.54 | E5: $3,375.36 | F5: =6*3 -> 18 | G5: $183.53 | H5: $3,303.54
A6: 59012885 | B6: Honor® Intrinsic® brand fungicide | C6: 1 x 36 lb | D6: $4,867.20 | E6: $4,973.04 | F6: 36 | G6: $135.20 | H6: $4,867.20
A7: 59014134 | B7: Insignia® SC Intrinsic® brand fungicide | C7: 4 x 30.5 fl oz | D7: $2,169.16 | E7: $2,216.76 | F7: =4*30.5 -> 122 | G7: $17.78 | H7: $2,169.16
A8: 59014135 | B8: Insignia® SC Intrinsic® brand fungicide | C8: 2 x 2.5 gal | D8: $7,225.10 | E8: $7,382.26 | F8: 5 | G8: $1,445.02 | H8: $7,225.10
A9: 59027998 | B9: Lexicon® Intrinsic® brand fungicide | C9: 4 x 21 oz | D9: $2,418.36 | E9: $2,471.28 | F9: =4*21 -> 84 | G9: $28.79 | H9: $2,418.36
A10: 59018087 | B10: Maxtima® fungicide | C10: 4 x 26 oz | D10: $907.92 | E10: $927.68 | F10: =4*26 -> 104 | G10: $8.73 | H10: $907.92
A11: 59018071 | B11: Maxtima® fungicide | C11: 2 x 2.5 gal | D11: $4,508.40 | E11: $4,606.46 | F11: 5 | G11: $901.68 | H11: $4,508.40
A12: 59018094 | B12: Navicon® Intrinsic® brand fungicide | C12: 4 x 37 fl oz | D12: $2,172.64 | E12: $2,220.00 | F12: =4*37 -> 148 | G12: $14.68 | H12: $2,172.64
A13: 59018095 | B13: Navicon® Intrinsic® brand fungicide | C13: 2 x 2.5 gal | D13: $6,998.00 | E13: $7,150.20 | F13: 5 | G13: $1,399.60 | H13: $6,998.00
A14: 59013833 | B14: Xzemplar® fungicide | C14: 2 x 114 oz | D14: $3,451.92 | E14: $3,527.16 | F14: =2*114 -> 228 | G14: $15.14 | H14: $3,451.92
A15: 59014120 | B15: Xzemplar® fungicide | C15: 4 x 11.4 oz | D15: $808.04 | E15: $825.80 | F15: =4*11.4 -> 45.6 | G15: $17.72 | H15: $808.04
A16: 2022 Rest of Portfolio
A17: Article Number | B17: Qaulifying Non-Agency Products | C17: Package | D17: Price
A18: 59014151 | B18: Admiral® lake colorant | C18: 4 x 1 gal | D18: $251.45 | E18: =D18 -> $251.45 | F18: 4 | G18: =H18/F18 -> $62.86 | H18: =D18 -> $251.45
A19: 59024020 | B19: Alucion® 35 WG insecticide | C19: 10 x 2.375 lbs | D19: $2,442.90 | E19: NO CA | F19: =10*38 -> 380 | G19: $6.43 | H19: $2,442.90
A20: 59021451 | B20: Amdro Pro Fire Ant Bait | C20: 1 x 25lbs | D20: $536.25 | E20: =D20 -> $536.25 | F20: 25 | G20: $21.45 | H20: $536.25
A21: 59011636 | B21: Basagran® herbicide | C21: 2 x 1 gal | D21: $125.58 | E21: NO CA | F21: 2 | G21: $62.79 | H21: $125.58
A22: 59013424 | B22: Black Onyx lake & pond colorant | C22: 4 x 1 gal | D22: $428.00 | E22: $428.00 | F22: 4 | G22: $107.00 | H22: $428.00
A23: 59011404 | B23: Drive® XLR8 herbicide | C23: 4 x 0.5 gal | D23: $221.25 | E23: $221.25 | F23: =4*0.5 -> 2 | G23: $110.63 | H23: $221.25
A24: 59018043 | B24: Drive® XLR8 herbicide | C24: 2 x 2.5 gal | D24: $514.44 | E24: $514.44
A25: 59024131 | B25: Finale® XL T&O herbicide | C25: 2 x 2.5 gal | D25: $543.75 | E25: $543.75 | F25: 5 | G25: =H25/F25 -> $108.75 | H25: $543.75
A26: 59011296 | B26: FreeHand® 1.75G herbicide | C26: 1 x 50 lb | D26: $109.50 | E26: $112.00 | F26: 50 | G26: $2.19 | H26: $109.50
A27: 59013430 | B27: Green Lawnger® colorant | C27: 2 x 2.5 gal | D27: $376.56 | E27: =D27 -> $376.56 | F27: 5 | G27: $75.31 | H27: $376.56
A28: 59013410 | B28: Green Lawnger® Transition HC colorant | C28: 4 x 1 gal | D28: $787.50 | E28: $787.50 | F28: 4 | G28: $196.88 | H28: $787.50
A29: 59013342 | B29: Green Lawnger® Vision Pro colorant | C29: 4 x 1 gal | D29: $707.50 | E29: $707.50 | F29: 4 | G29: $176.88 | H29: $707.50
A30: 59020732 | B30: Insignia® SC Intrinsic® brand fungicide | C30: 4 x 122 oz | D30: $9,760.00 | E30: =D30 -> $9,760.00 | F30: =4*122 -> 488 | G30: $20.00 | H30: $9,760.00 | J30: <-- | K30: lawn care only?
A31: 59014379 | B31: Orkestra® Intrinsic® brand Fungicide | C31: 4 x 16 oz | D31: $668.80 | E31: $683.52 | F31: =4*16 -> 64 | G31: $10.45 | H31: $668.80
A32: 59012349 | B32: Pageant® Intrinsic® brand Fungicide | C32: 4 x 1 lb | D32: $443.36 | E32: $453.00 | F32: 4 | G32: $110.84 | H32: $443.36
A33: 59017972 | B33: Pendulum® 2G herbicide | C33: 20 lbs bag | D33: $48.50 | E33: =D33 -> $48.50 | F33: 20 | G33: $2.43 | H33: $48.50
A34: 59015072 | B34: Pendulum® 2G herbicide | C34: 40 lbs bag | D34: $85.50 | E34: $85.50 | F34: 40 | G34: $2.14 | H34: $85.50
A35: 59049276 | B35: Pendulum® AquaCap herbicide | C35: 2 x 2.5 gal | D35: $281.25 | E35: $281.25 | F35: 5 | G35: $56.25 | H35: $281.25
A36: 59011279 | B36: Pendulum® AquaCap herbicide | C36: 1 x 15 gal | D36: $983.10 | E36: $1,004.55 | F36: 15 | G36: $65.54 | H36: $983.10
A37: 59017959 | B37: Pillar® G Intrinsic® brand fungicide | C37: 15 lbs bag | D37: $56.63 | E37: =D37 -> $56.63 | F37: 15 | G37: $3.78 | H37: $56.63
A38: 59012784 | B38: Pillar® G Intrinsic® brand fungicide | C38: 30 lbs bag | D38: $105.00 | E38: $105.00 | F38: 30 | G38: $3.50 | H38: $105.00
A39: 59026395 | B39: Pillar® SC Intrinsic brand fungicide | C39: 4 x 43.5 oz | D39: $856.95 | E39: =D39 -> $856.95 | F39: =4*43.5 -> 174 | G39: $4.93 | H39: $856.95 | J39: <-- | K39: lawn care only?
A40: 59018005 | B40: Pylex® herbicide | C40: 4 x 4 oz | D40: $1,376.00 | E40: $1,405.92 | F40: 16 | G40: $86.00 | H40: $1,376.00
A41: 59014427 | B41: Segment® II herbicide | C41: 2 x 2.5 gal | D41: $1,562.50 | E41: NO CA | F41: 5 | G41: $312.50 | H41: $1,562.50
A42: 59011057 | B42: Siesta® Fire Ant Bait | C42: 15 lbs | D42: $294.19 | E42: =D42 -> $294.19 | F42: 15 | G42: $19.61 | H42: $294.19
A43: 59023753 | B43: Sultan® miticide | C43: 4 x 0.125 gal | D43: $709.68 | E43: $725.12 | F43: =4*0.125 -> 0.5 | G43: $1,419.36 | H43: $709.68
A44: 59014247 | B44: Tower® herbicide | C44: 2 x 2.5 gal | D44: $1,972.50 | E44: $2,015.40 | F44: 5 | G44: $394.50 | H44: $1,972.50
A45: 59013723 | B45: Turf Mark spray indicator | C45: 12 x 0.25 gal | D45: $247.50 | E45: =D45 -> $247.50 | F45: =12*0.25 -> 3 | G45: $82.50 | H45: $247.50
A46: 59013314 | B46: Turf Mark spray indicator | C46: 1 x 30 gal | D46: $1,556.25 | E46: $1,556.25 | F46: 30 | G46: $51.88 | H46: $1,556.25
A47: 59013417 | B47: Turf Mark spray indicator - blue | C47: 2 x 2.5 gal | D47: $278.13 | E47: $278.13 | F47: 5 | G47: $55.63 | H47: $278.13
A48: 59013486 | B48: Turf Mark spray indicator - green | C48: 2 x 2.5 gal | D48: $333.88 | E48: $333.88 | F48: 5 | G48: $66.78 | H48: $333.88
A49: 59014680 | B49: Ventigra® insecticide | C49: 4 x 20 oz | D49: $1,266.40 | E49: $1,293.60 | F49: =4*20 -> 80 | G49: $15.83 | H49: $1,266.40
J51: =SUM(D18:D49) -> $29,930.80
A52: 59013674 | B52: FreeHand® 1.75G CA herbicide | C52: 1 x 50 lb

Sheet Sheet1 (hidden)
B2: Qualifying Fungicide EOP Purchase Level | C2: October 1st - October 31st, 2021 Earned Rebate | D2: November 1st - December 10th, 2021 Earned Incentive % | E2: January 1 - September 30, 2021 Earned Incentive % | G2: Qualifying EOP Purchase Level (Excluding DYP Fungicides) | H2: October 1st - December 4th, 2021 Earned Rebate | I2: January 1 - September 30, 2022 Earned Incentive % | K2: Qualifying Fungicide EOP Purchase Level | L2: October 1st - October 31st, 2021 Earned Rebate | M2: November 1st - December 3rd, 2021 Earned Incentive % | O2: Qualifying EOP Purchase Level (Excluding DYP Fungicides) | P2: October 1st - December 3rd, 2021 Earned Rebate
B3: $5,000-$14,999 | C3: 12% | D3: 6% | E3: - | G3: $2,000-$6,999 | H3: 4% | I3: - | K3: $5,000-$14,999 | L3: 12% | M3: 8% | O3: $2,000-$6,999 | P3: 4%
B4: $15,000-$24,999 | C4: 16% | D4: 8% | E4: - | G4: $7,000-$14,999 | H4: 6% | I4: - | K4: $15,000-$24,999 | L4: 16% | M4: 10% | O4: $7,000-$14,999 | P4: 6%
B5: $25,000-$34,999 | C5: 20% | D5: 10% | E5: 7% | G5: $15,000+ | H5: 10% | I5: $25,000-$34,999 = 7% | K5: $25,000-$34,999 | L5: 20% | M5: 12% | O5: $15,000+ | P5: 10%
B6: $35,000+ | C6: 24% | D6: 12% | E6: 10% | I6: $35,000+ = 10% | K6: $35,000+ | L6: 24% | M6: 14%
K13: Qualifying Fungicide Purchase Level (DYOP) | L13: Earned Incentive % | O13: Qualifying EOP Purchase Level (Excluding DYOP Fungicides) | P13: Earned Incentive %
L14: Oct. 1-31, 2022 | M14: Nov. 1-Dec. 2, 2022 | P14: Oct.1-Dec. 2, 2022
K15: $5,000-$14,999 | L15: 12% | M15: 8% | O15: $2,000-$6,999 | P15: 4%
K16: $15,000-$24,999 | L16: 16% | M16: 10% | O16: $7,000-$14,999 | P16: 6%
K17: $25,000-$34,999 | L17: 20% | M17: 12% | O17: $15,000+ | P17: 10%
K18: $35,000+ | L18: 24% | M18: 14%
M22: Start earning rebates at only $3,000 | O22: Qualifying Purchase Levels | P22: Earned Incentive %
P23: Oct.1-Dec. 1, 2023
M24: Earn 12% rebate by reaching only $20,000 in total purchases. | O24: $3,000-$7,999 | P24: 4%
O25: $8,000-$19,999 | P25: 6%
M26: Count your savings and win with EOP. | O26: $20,000+ | P26: 12%
